Workbook

Sheet Sheet1 (2)
N1: shouldDays | O1: shouldHours | P1: actualDays | Q1: actualHours | R1: nightDays | S1: festivalDays | T1: festivalHours
A2: 费用归属 | B2: 人员类别 | C2: 薪资分组 | D2: 公司归属 | E2: 一级部门 | F2: 二级部门 | G2: 三级部门 | H2: 员工编号 | I2: 员工姓名 | J2: 邮箱 | K2: 入职日期 | L2: 离职日期 | M2: 工龄 | N2: 应出勤天数 | O2: 应出勤小时 | P2: 实际出勤天数 | Q2: 实际出勤小时数 | R2: 节日出勤天数 | S2: 节日出勤小时 | T2: 夜班出勤天数 | U2: 餐补标准 | V2: 工龄补贴标准 | W2: 加班费基数 | X2: 夜班补贴基数 | Y2: 社保缴费基数 | Z2: 公积金缴费基数 | AA2: 基本工资 | AB2: 基础工资 | AC2: 技能工资 | AD2: 保密工资 | AE2: 职位津贴 | AF2: 补贴合计 | AG2: 工龄补贴 | AH2: 职称补贴 | AI2: 环境补贴 | AJ2: 租房补贴 | AK2: 交通补贴 | AL2: 餐费补贴 | AM2: 夜班补贴 | AN2: 高温补贴 | AO2: 其他福利补贴 | AP2: 加班费合计 | AQ2: 固定加班费 | AR2: 平日加班小时 | AS2: 平日加班费 | AT2: 周末加班小时 | AU2: 周末加班费 | AV2: 节日加班小时 | AW2: 节日加班费 | AX2: 绩效 | AY2: 提成 | AZ2: 工资补款 | BA2: 工资扣款 | BB2: 应发工资 | BC2: 个人四金扣款 | BD2: 养老保险 | BE2: 医疗保险 | BF2: 重疾补助 | BG2: 失业保险 | BH2: 住房公积金 | BI2: 计税工资 | BJ2: 代扣上月个税 | BK2: 劳务个税 | BL2: 电费 | BM2: 实发工资
A3: 管理 | B3: 正式工 | C3: 上海组 | D3: 上海纳琳威 | E3: IT部 | F3: 无 | G3: 无 | H3: N100085 | I3: 邓夙成 | J3: dengsucheng@nalinv.cn | K3: 2019-07-01 | M3: =IF(K3="","",DATEDIF(K3,TODAY(),"Y")) -> 3 | N3: 21 | O3: 168 | P3: 21 | U3: 20 | V3: 100 | W3: 5500 | Y3: 8746 | Z3: 8746 | AA3: =SUM(AB3:AE3) -> 9010 | AB3: 5500 | AC3: 2010 | AD3: 1500 | AF3: =SUM(AG3:AO3) -> 720 | AG3: =M3*V3 -> 300 | AL3: =P3*U3 -> 420 | AM3: =T3*X3 -> 0 | AP3: =AQ3+AS3+AU3+AW3 -> 0 | AS3: =ROUND(W3/174*AR3*1.5,2) -> 0 | AU3: =ROUND(W3/174*AT3*2,2) -> 0 | AW3: =ROUND(W3/174*AV3*3,2) -> 0 | BB3: =AA3+AF3+AP3+AX3+AY3+AZ3-BA3 -> 9730 | BC3: =BD3+BE3+BG3+BH3 -> 1530.5 | BD3: =ROUND(Y3*0.08,1) -> 699.7 | BE3: =ROUNDUP(Y3*0.02,1) -> 175 | BG3: =ROUNDUP(Y3*0.005,1) -> 43.8 | BH3: =ROUND(Z3*0.07,0) -> 612 | BI3: =BB3-BC3 -> 8199.5 | BJ3: 80.38 | BM3: =BI3-BJ3-BK3-BL3 -> 8119.12
A4: 生产 | B4: 正式工 | C4: 上海组 | D4: 上海纳琳科 | E4: 生产制造中心 | F4: PET拉膜车间 | G4: 无 | H4: N100219 | I4: 罗辉 | J4: luoyuhui@nalinke.com | K4: 2020-06-01 | M4: =IF(K4="","",DATEDIF(K4,TODAY(),"Y")) -> 2 | N4: 21 | O4: 168 | P4: 23.5 | Q4: 218 | U4: 30 | V4: 100 | W4: 2590 | Y4: 9285 | Z4: 9285 | AA4: =SUM(AB4:AE4) -> 4860 | AB4: 3000 | AC4: 1060 | AD4: 800 | AF4: =SUM(AG4:AO4) -> 1205 | AG4: =M4*V4 -> 200 | AL4: =P4*U4 -> 705 | AM4: =T4*X4 -> 0 | AN4: 300 | AP4: =AQ4+AS4+AU4+AW4 -> 1321.05 | AR4: =Q4-O4-AV4-AT4 -> 22.5 | AS4: =ROUND(W4/174*AR4*1.5,2) -> 502.37 | AT4: =(P4-N4-R4)*11 -> 27.5 | AU4: =ROUND(W4/174*AT4*2,2) -> 818.68 | AW4: =ROUND(W4/174*AV4*3,2) -> 0 | BB4: =AA4+AF4+AP4+AX4+AY4+AZ4-BA4 -> 7386.05 | BC4: =BD4+BE4+BG4+BH4 -> 1625 | BD4: =ROUND(Y4*0.08,1) -> 742.8 | BE4: =ROUNDUP(Y4*0.02,1) -> 185.7 | BG4: =ROUNDUP(Y4*0.005,1) -> 46.5 | BH4: =ROUND(Z4*0.07,0) -> 650 | BI4: =BB4-BC4 -> 5761.05 | BJ4: 79.97 | BM4: =BI4-BJ4-BK4-BL4 -> 5681.08
A5: 研发 | B5: 正式工 | C5: 南通组 | D5: 南通纳琳威 | E5: 设备制造研发 | F5: 设备服务部 | G5: 研磨造粒分切生产 | H5: N100380 | I5: 赵清清 | J5: zhaoqingqing@nalinv.cn | K5: 2021-07-19 | M5: 1 | N5: 21 | O5: 168 | P5: 26 | Q5: 217 | V5: 100 | W5: 3000 | Y5: 5147 | Z5: 4565 | AA5: 4565 | AB5: 3000 | AC5: 765 | AD5: 800 | AF5: 400 | AG5: 100 | AM5: 0 | AN5: 300 | AP5: 1750 | AR5: 9 | AS5: =ROUND(W5/174*AR5*1.5,2) -> 232.76 | AT5: 32 | AU5: =ROUND(W5/174*AT5*2,2) -> 1103.45 | AV5: 8 | AW5: =ROUND(W5/174*AV5*3,2) -> 413.79 | BB5: =AA5+AF5+AP5+AX5+AY5+AZ5-BA5 -> 6715 | BC5: =BD5+BE5+BF5+BG5+BH5 -> 916.4 | BD5: =ROUND(Y5*0.08,2) -> 411.76 | BE5: =ROUND(Y5*0.02,1) -> 102.9 | BF5: 10 | BG5: =ROUND(Y5*0.005,2) -> 25.74 | BH5: =ROUNDUP(Z5*0.08,0) -> 366 | BI5: 5798.6 | BJ5: 0 | BL5: 86 | BM5: 5712.6
A6: 生产 | B6: 正式工 | C6: 南通组 | D6: 南通纳科达 | E6: 生产制造中心 | F6: TPU涂布进口线 | G6: 无 | H6: N100084 | I6: 王为乐 | J6: wangweile@nalinwei.cn | K6: 2016-10-01 | M6: 6 | N6: 21 | O6: 168 | P6: 24 | Q6: 272 | R6: 1 | S6: 15 | V6: 100 | W6: 2280 | Y6: 12745 | Z6: 9509 | AA6: 6630 | AB6: 3000 | AC6: 1130 | AD6: 1500 | AE6: 1000 | AF6: 900 | AG6: 600 | AM6: 0 | AN6: 300 | AP6: 2404.48 | AR6: =Q6-O6-AV6-AT6 -> 71 | AS6: =ROUND(W6/174*AR6*1.5,2) -> 1395.52 | AT6: =(P6-N6-R6)*11 -> 22 | AU6: =ROUND(W6/174*AT6*2,2) -> 576.55 | AV6: =R6*11 -> 11 | AW6: =ROUND(W6/174*AV6*3,2) -> 432.41 | AX6: 4799 | BB6: =AA6+AF6+AP6+AX6+AY6+AZ6-BA6 -> 14733.48 | BC6: =BD6+BE6+BF6+BG6+BH6 -> 2109.23 | BD6: =ROUND(Y6*0.08,2) -> 1019.6 | BE6: =ROUND(Y6*0.02,1) -> 254.9 | BF6: 10 | BG6: =ROUND(Y6*0.005,2) -> 63.73 | BH6: =ROUNDUP(Z6*0.08,0) -> 761 | BI6: 12624.25 | BJ6: 584.4 | BL6: 82 | BM6: 11957.85
N7: 目前手动导入 | U7: 固定部分：基数标准 | AA7: 基本工资 = 基础工资 + 技能工资 + 保密工资 + 职位津贴 | AF7: 补贴合计 = 工龄补贴 + 职称补贴 + 环境补贴 + 租房补贴 + 交通补贴 + 餐费补贴 + 高温补贴 + 夜班补贴 + 其他福利补贴 | AP7: 加班费合计 = 固定加班费 + 平日加班费 + 周末加班费 + 节日加班费 | AX7: 目前手动导入 | BB7: 应发工资 = 基本工资 + 补贴合计 + 加班费合计 + 绩效 + 提成 + 工资补款 - 工资扣款 | BI7: 计税工资 = 应发工资 - 个人四金扣款 | BM7: 实发工资 = 计税工资 - 代扣上月个税 - 劳务个税 - 电费
AF8: 工龄补贴：= 工龄 × 工龄补贴标准，根据入职日期计算，比如计算6月薪资时，工龄日期统计截至到6月30日为满1年，100元/年，5年500元封顶 | AP8: 固定加班费：金额固定 | BC8: 个人四金扣款 = 养老保险 + 医疗保险 + 重疾补助 + 失业保险 + 住房公积金 | BJ8: 目前手动导入
AF9: 餐费补贴：= 实际出勤天数 × 餐补标准 | AP9: 平日加班费 = 加班费基数/174*平日加班小时 *1.5，四舍五入保留2位小数 | BC9: 上海组 = 养老保险 + 医疗保险 + 失业保险 + 住房公积金
AF10: 夜班补贴：= 夜班天数 × 夜班补贴标准 | AP10: 周末加班费 = 加班费基数/174*周末加班小时 *2，四舍五入保留2位小数 | BC10: 养老保险 = 社保缴费基数 * 8%，四舍五入保留1位小数
AF11: 固定补贴：职称补贴、环境补贴、租房补贴、交通补贴 | AP11: 节日加班费 = 加班费基数/174*节日加班小时 *3，四舍五入保留2位小数 | BC11: 医疗保险 = 社保缴费基数 * 2%，进位保留1位小数
AF12: 目前手动导入：高温补贴、其他福利补贴 | AP12: 目前手动导入：平日加班小时，周末加班小时，节日加班小时 | BC12: 失业保险 = 社保缴费基数 * 0.5%，进位保留1位小数
BC13: 住房公积金 = 公积金缴费基数 * 7%，四舍五入到元
BC14: 南通组 = 养老保险 + 医疗保险 + 重疾补助 + 失业保险 + 住房公积金
BC15: 养老保险 = 社保缴费基数 * 8%，四舍五入保留2位小数
AS16: 174：月平均工作小时 | BC16: 医疗保险 = 社保缴费基数 * 2%，四舍五入保留1位小数
BC17: 重疾补助 = 10元/月/人
BC18: 失业保险 = 社保缴费基数 * 0.5%，四舍五入保留2位小数
AS19: 21.75：月平均工作日 | BC19: 住房公积金 = 公积金缴费基数 * 8%，进位到元

Sheet Sheet1
F7: 10月 | G7: 天 | H7: 小时
G8: 18 | H8: 144 | J8: 配置
G10: 30 | H10: 330 | J10: 工厂手动填写
F12: 加班 | G12: =G10-G8 -> 12 | H12: =H10-H8 -> 186 | J12: 自动计算
F15: 节日加班 | G15: 3 | H15: 30 | J15: 手动填写
F17: 周末加班 | G17: =G12-G15 -> 9 | H17: =G17*11 -> 99 | K17: 按11小时
F19: 平日加班 | H19: =H10-H8-H15-H17 -> 57
N20: 一人有多个薪资组
